fUST/lending_fUST_20250426
["ID","MTS","AMOUNT","RATE_DAILY","PERIOD"]
[358996010,1745615439542,-5417.4311879,0.00015021,2]
[358996012,1745615439551,-514.33829501,0.00015021,2]
[358996015,1745615439561,-5417.4311879,0.00015021,2]
[358996017,1745615439570,-514.33829501,0.00015021,2]
[358996019,1745615439580,-5417.4311879,0.00015021,2]
[358996021,1745615439589,-5417.4311879,0.00015021,2]
[358996023,1745615439598,-5417.4311879,0.00015021,2]
[358996025,1745615439608,-517.60393496,0.00015021,2]
[358996027,1745615439618,-517.60393496,0.00015021,2]
[358996029,1745615439627,-5417.4311879,0.00015021,2]
[358996031,1745615439636,-517.60393496,0.00015021,2]
[358996033,1745615439646,-5417.4311879,0.00015021,2]
[358996035,1745615439656,-517.60393496,0.00015021,2]
[358996036,1745615439667,-517.60393496,0.00015021,2]
[358996038,1745615439677,-5417.4311879,0.00015021,2]
[358996040,1745615439686,-517.60393496,0.00015021,2]
[358996042,1745615439696,-5417.4311879,0.00015021,2]
[358996044,1745615439706,-517.60393496,0.00015021,2]
[358996046,1745615439715,-5417.4311879,0.00015021,2]
[358996048,1745615439724,-517.60393496,0.00015021,2]
[358996050,1745615439736,-517.60393496,0.00015021,2]
[358996052,1745615439746,-5417.4311879,0.00015021,2]
[358996054,1745615439756,-517.60393496,0.00015021,2]
[358996056,1745615439765,-5417.4311879,0.00015021,2]
[358996058,1745615439774,-517.60393496,0.00015021,2]
[358996060,1745615439785,-517.60393496,0.00015021,2]
[358996062,1745615439795,-517.60393496,0.00015021,2]
[358996064,1745615439804,-5417.4311879,0.00015021,2]
[358996066,1745615439815,-517.60393496,0.00015021,2]
[358996068,1745615439826,-5417.4311879,0.00015021,2]
[358996070,1745615439835,-517.60393496,0.00015021,2]
[358996072,1745615439845,-5417.4311879,0.00015021,2]
[358996074,1745615439855,-5417.4311879,0.00015021,2]
[358996076,1745615439864,-5417.4311879,0.00015021,2]
[358996078,1745615439875,-517.60393496,0.00015021,2]
[358996080,1745615439884,-517.60393496,0.00015021,2]
[358996082,1745615439893,-5417.4311879,0.00015021,2]
[358996084,1745615439903,-517.60393496,0.00015021,2]
[358996086,1745615439912,-5417.4311879,0.00015021,2]
[358996087,1745615439922,-5417.4311879,0.00015021,2]
[358996089,1745615439931,-5417.4311879,0.00015021,2]
[358996091,1745615439940,-5417.4311879,0.00015021,2]
[358996092,1745615439950,-5417.4311879,0.00015021,2]
[358996093,1745615439961,-5417.4311879,0.00015021,2]
[358996094,1745615439971,-5417.4311879,0.00015021,2]
[358996095,1745615439980,-2471.94572495,0.00015021,2]
[358996213,1745615441415,-2945.48546295,0.00015021,2]
[358996215,1745615441425,-2514.08428631,0.00015021,2]
[358996241,1745615441686,-2903.34690159,0.00015021,2]
[358996243,1745615441697,-5417.4311879,0.00015021,2]
[358996245,1745615441707,-5417.4311879,0.00015021,2]
[358996247,1745615441717,-5417.43118791,0.00015021,2]
[358996249,1745615441726,-5417.43118791,0.00015021,2]
[358996251,1745615441746,-5417.43118791,0.00015021,2]
[358996253,1745615441755,-5417.43118791,0.00015021,2]
[358996255,1745615441765,-30479.21618665,0.00015021,2]
[358996415,1745615443307,-18435.70960863,0.00015021,2]
[358996422,1745615443364,-1085.07420472,0.00015021,2]
[358996424,1745615443375,-1944.88880614,0.00015023,2]
[358996640,1745615445976,-1393.94638718,0.00015023,2]
[358998023,1745615462821,250.0,0.00014921,2]
[359001411,1745615572691,1427.0,0.00027,30]
[359001413,1745615607837,279.24005949,0.00014924,2]
[359001414,1745615622349,1000.0,0.00014921,2]
[359001416,1745615629058,24900.0,0.0001488,2]
[359001417,1745615764785,2393.75,0.00014,10]
[359001418,1745615808588,244.33505201,0.00014921,2]
[359001419,1745615811126,1196.87,0.00027,30]
[359001420,1745616011085,250.0,0.00015,2]
[359001421,1745616011190,250.0,0.00015,2]
[359001422,1745616011465,345.0,0.00015,2]
[359001423,1745616013833,213.7931705,0.0001492,2]
[359001424,1745616020890,177.38918406,0.00014923,2]
[359001426,1745616180872,247.54645685,0.0001467,2]
[359001427,1745616219202,187.06902424,0.00014918,2]
[359001428,1745616369876,250.0,0.00014859,2]
[359001431,1745616430417,163.68539621,0.00014917,2]
[359001432,1745616432774,22241.21039687,0.00015,2]
[359001433,1745616433080,-300.0,0.00015015,2]
[359001434,1745616433102,-27.1960002,0.00015016,2]
[359001444,1745616563411,13559.06834532,0.00014873,2]
[359001445,1745616564615,-178.24435643,0.00014873,2]
[359001446,1745616568112,-30639.57644924,0.00014873,2]
[359001447,1745616568448,-170.75564357,0.00014873,2]
[359001448,1745616574070,-265.0508,0.00014873,2]
[359001449,1745616574911,-182.23678652,0.00014873,2]
[359001450,1745616578660,-120.46638982,0.00014873,2]
[359001477,1745616632084,-300.0,0.00015014,2]
[359001478,1745616632094,-1200.0,0.00015014,2]
[359001479,1745616632103,-500.0,0.00015015,2]
[359001480,1745616632113,-500.0,0.00015015,2]
[359001481,1745616632122,-218.31304269,0.00015015,2]
[359001482,1745616632131,-500.0,0.00015015,2]
[359001483,1745616632141,-309.50798866,0.00015015,2]
[359001484,1745616632151,-500.0,0.00015015,2]
[359001485,1745616632160,-500.0,0.00015015,2]
[359001486,1745616632169,-500.0,0.00015015,2]
[359001487,1745616632178,-500.0,0.00015015,2]
[359001488,1745616632188,-500.0,0.00015015,2]
[359001489,1745616632197,-500.0,0.00015015,2]
[359001490,1745616632206,-500.0,0.00015015,2]
[359001491,1745616632216,-500.0,0.00015015,2]
[359001492,1745616632225,-500.0,0.00015015,2]
[359001493,1745616632235,-500.0,0.00015015,2]
[359001494,1745616632244,-500.0,0.00015015,2]
[359001495,1745616632254,-400.00000009,0.00015015,2]
[359001496,1745616632263,-500.0,0.00015015,2]
[359001497,1745616632272,-500.0,0.00015015,2]
[359001498,1745616632281,-500.0,0.00015015,2]
[359001499,1745616632291,-500.0,0.00015015,2]
[359001501,1745616632301,-500.0,0.00015015,2]
[359001503,1745616632310,-500.0,0.00015015,2]
[359001505,1745616632320,-500.0,0.00015015,2]
[359001506,1745616632331,-500.0,0.00015015,2]
[359001507,1745616632341,-500.0,0.00015015,2]
[359001508,1745616632351,-500.0,0.00015015,2]
[359001509,1745616632360,-500.0,0.00015015,2]
[359001510,1745616632370,-500.0,0.00015015,2]
[359001511,1745616632380,-500.0,0.00015015,2]
[359001512,1745616632389,-500.0,0.00015015,2]
[359001513,1745616632399,-500.0,0.00015015,2]
[359001514,1745616632409,-500.0,0.00015015,2]
[359001515,1745616632419,-500.0,0.00015015,2]
[359001516,1745616632428,-500.0,0.00015015,2]
[359001517,1745616632438,-500.0,0.00015015,2]
[359001518,1745616632448,-500.0,0.00015015,2]
[359001519,1745616632457,-500.0,0.00015015,2]
[359001520,1745616632467,-446.98534494,0.00015015,2]
[359001521,1745616632476,-500.0,0.00015015,2]
[359001522,1745616632487,-500.0,0.00015015,2]
[359001523,1745616632496,-500.0,0.00015015,2]
[359001524,1745616632505,-358.20406865,0.00015015,2]
[359001525,1745616632515,-500.0,0.00015015,2]
[359001526,1745616632524,-500.0,0.00015015,2]
[359001527,1745616632534,-526.37346729,0.00015015,2]
[359001528,1745616632543,-526.37346729,0.00015015,2]
[359001529,1745616632553,-526.37346729,0.00015015,2]
[359001530,1745616632562,-526.37346729,0.00015015,2]
[359001531,1745616632572,-526.37346729,0.00015015,2]
[359001532,1745616632582,-526.37346729,0.00015015,2]
[359001533,1745616632591,-526.37346729,0.00015015,2]
[359001534,1745616632601,-526.37346729,0.00015015,2]
[359001535,1745616632611,-526.37346729,0.00015015,2]
[359001536,1745616632620,-526.37346729,0.00015015,2]
[359001537,1745616632629,-526.37346729,0.00015015,2]
[359001538,1745616632639,-526.37346729,0.00015015,2]
[359001539,1745616632648,-526.37346729,0.00015015,2]
[359001540,1745616632657,-526.37346729,0.00015015,2]
[359001541,1745616632666,-526.37346729,0.00015015,2]
[359001542,1745616632676,-526.37346729,0.00015015,2]
[359001543,1745616632686,-238.77823384,0.00015015,2]
[359001544,1745616632699,-287.59523345,0.00015015,2]
[359001545,1745616632709,-526.37346729,0.00015015,2]
[359001546,1745616632719,-526.37346729,0.00015015,2]
[359001547,1745616632728,-526.37346729,0.00015015,2]
[359001548,1745616632738,-526.37346729,0.00015015,2]
[359001549,1745616632747,-70.97693642,0.00015015,2]
[359001550,1745616632760,-455.39653087,0.00015015,2]
[359001551,1745616632769,-526.37346729,0.00015015,2]
[359001552,1745616632779,-526.37346729,0.00015015,2]
[359001553,1745616632788,-526.37346729,0.00015015,2]
[359001554,1745616632798,-526.37346729,0.00015015,2]
[359001555,1745616632807,-526.37346729,0.00015015,2]
[359001556,1745616632816,-526.37346729,0.00015015,2]
[359001557,1745616632826,-526.37346729,0.00015015,2]
[359001558,1745616632836,-526.37346729,0.00015015,2]
[359001559,1745616632845,-526.37346729,0.00015015,2]
[359001560,1745616632855,-127.53843315,0.00015015,2]
[359001561,1745616632871,-398.83503414,0.00015015,2]
[359001562,1745616632881,-526.37346729,0.00015015,2]
[359001563,1745616632890,-526.37346729,0.00015015,2]
[359001564,1745616632900,-526.37346729,0.00015015,2]
[359001565,1745616632910,-526.37346729,0.00015015,2]
[359001566,1745616632919,-526.37346729,0.00015015,2]
[359001567,1745616632930,-526.37346729,0.00015015,2]
[359001568,1745616632939,-526.37346729,0.00015015,2]
[359001569,1745616632948,-526.37346729,0.00015015,2]
[359001570,1745616632958,-526.37346729,0.00015015,2]
[359001571,1745616632968,-526.37346729,0.00015015,2]
[359001572,1745616632977,-526.37346729,0.00015015,2]
[359001573,1745616632987,-526.37346729,0.00015015,2]
[359001574,1745616632997,-526.37346729,0.00015015,2]
[359001575,1745616633006,-526.37346729,0.00015015,2]
[359001576,1745616633016,-526.37346729,0.00015015,2]
[359001577,1745616633026,-526.37346729,0.00015015,2]
[359001578,1745616633036,-526.37346729,0.00015015,2]
[359001579,1745616633045,-526.37346729,0.00015015,2]
[359001580,1745616633055,-526.3734673,0.00015015,2]
[359001581,1745616633065,-526.3734673,0.00015015,2]
[359001582,1745616633074,-526.3734673,0.00015015,2]
[359001583,1745616633084,-526.3734673,0.00015015,2]
[359001584,1745616633093,-526.3734673,0.00015015,2]
[359001585,1745616633103,-526.3734673,0.00015015,2]
[359001586,1745616633112,-526.3734673,0.00015015,2]
[359001587,1745616633122,-526.3734673,0.00015015,2]
[359001588,1745616633132,-526.3734673,0.00015015,2]
[359001589,1745616633142,-526.3734673,0.00015015,2]
[359001590,1745616633152,-526.3734673,0.00015015,2]
[359001591,1745616633162,-526.3734673,0.00015015,2]
[359001592,1745616633171,-526.3734673,0.00015015,2]
[359001593,1745616633181,-526.3734673,0.00015015,2]
[359001594,1745616633191,-526.3734673,0.00015015,2]
[359001595,1745616633200,-526.3734673,0.00015015,2]
[359001596,1745616633210,-526.3734673,0.00015015,2]
[359001597,1745616633220,-526.3734673,0.00015015,2]
[359001598,1745616633230,-526.3734673,0.00015015,2]
[359001599,1745616633239,-526.3734673,0.00015015,2]
[359001600,1745616633249,-526.3734673,0.00015015,2]
[359001601,1745616633260,-526.3734673,0.00015015,2]
[359001602,1745616633270,-526.3734673,0.00015015,2]
[359001603,1745616633279,-526.3734673,0.00015015,2]
[359001604,1745616633289,-526.3734673,0.00015015,2]
[359001605,1745616633299,-526.3734673,0.00015015,2]
[359001606,1745616633309,-526.3734673,0.00015015,2]
[359001607,1745616633318,-539.37034301,0.00015015,2]
[359001608,1745616633329,-539.37034301,0.00015015,2]
[359001609,1745616633340,-539.37034301,0.00015015,2]
[359001610,1745616633349,-3903.45924797,0.00015015,2]
[359001611,1745616633359,-3863.56915821,0.00015015,2]
[359001612,1745616633373,-39.89008976,0.00015015,2]
[359001613,1745616633383,-3903.45924797,0.00015015,2]
[359001614,1745616633392,-3903.45924797,0.00015015,2]
[359001615,1745616633402,-3903.45924797,0.00015015,2]
[359001616,1745616633412,-3903.45924797,0.00015015,2]
[359001617,1745616633422,-3903.45924797,0.00015015,2]
[359001618,1745616633431,-3903.45924797,0.00015015,2]
[359001619,1745616633441,-3903.45924797,0.00015015,2]
[359001620,1745616633450,-2523.58190531,0.00015015,2]
[359001648,1745616638001,-163.68539615,0.00014915,2]
[359001650,1745616638011,-1379.87734266,0.00015015,2]
[359001652,1745616638020,-870.26628225,0.00015015,2]
[359001654,1745616638032,-3033.19296572,0.00015015,2]
[359001656,1745616638041,-3903.45924797,0.00015015,2]
[359001658,1745616638051,-3903.45924797,0.00015015,2]
[359001660,1745616638061,-3903.45924797,0.00015015,2]
[359001662,1745616638070,-3903.45924797,0.00015015,2]
[359001664,1745616638079,-3903.45924797,0.00015015,2]
[359001666,1745616638090,-1881.48198844,0.00015015,2]
[359001669,1745616638101,-2021.97725953,0.00015015,2]
[359001671,1745616638111,-1726.34799124,0.00015015,2]
[359001673,1745616638122,-2177.11125673,0.00015015,2]
[359001675,1745616638131,-3903.45924797,0.00015015,2]
[359001677,1745616638141,-3903.45924797,0.00015015,2]
[359001695,1745616638306,-3903.45924797,0.00015015,2]
[359001697,1745616638316,-3903.45924797,0.00015015,2]
[359001699,1745616638326,-3903.45924797,0.00015015,2]
[359001700,1745616638339,-3903.45924797,0.00015015,2]
[359001702,1745616638347,-3903.45924797,0.00015015,2]
[359001703,1745616638357,-3903.45924797,0.00015015,2]
[359001704,1745616638367,-3903.45924797,0.00015015,2]
[359001705,1745616638377,-3903.45924797,0.00015015,2]
[359001706,1745616638386,-3903.45924797,0.00015015,2]
[359001707,1745616638395,-3903.45924797,0.00015015,2]
[359001708,1745616638405,-3903.45924797,0.00015015,2]
[359001709,1745616638415,-3903.45924797,0.00015015,2]
[359001710,1745616638425,-3903.45924797,0.00015015,2]
[359001711,1745616638435,-3903.45924797,0.00015015,2]
[359001712,1745616638444,-3903.45924797,0.00015015,2]
[359001713,1745616638453,-3903.45924797,0.00015015,2]
[359001714,1745616638463,-3903.45924797,0.00015015,2]
[359001715,1745616638472,-3903.45924797,0.00015015,2]
[359001716,1745616638483,-3903.45924797,0.00015015,2]
[359001717,1745616638492,-3903.45924797,0.00015015,2]
[359001718,1745616638501,-3903.45924797,0.00015015,2]
[359001719,1745616638511,-27893.80926817,0.00015015,2]
[359001720,1745616638522,-151.0,0.00015017,2]
[359001721,1745616638532,-151.0,0.00015017,2]
[359001722,1745616638543,-160.0,0.00015018,2]
[359001723,1745616638553,-287.251566,0.00015019,2]
[359001724,1745616638563,-195.695944,0.0001502,2]
[359001725,1745616638574,-474.83,0.00015022,2]
[359001726,1745616638584,-248449.20724369,0.00015023,2]
[359001734,1745616640436,-1546.78600054,0.00015023,2]
[359001735,1745616640448,-42819.00603899,0.00015023,2]
[359001736,1745616640535,-6.60469952,0.00015023,2]
[359001760,1745616646026,-1237.43049552,0.00015015,2]
[359001761,1745616646085,-2649.41828757,0.00015015,2]
[359001762,1745616646094,-2019.32267142,0.00015015,2]
[359001763,1745616646144,-1867.52611167,0.00015015,2]
[359001764,1745616646154,-3886.84878309,0.00015015,2]
[359001765,1745616646163,-3886.84878309,0.00015015,2]
[359001766,1745616646173,-3886.84878309,0.00015015,2]
[359001767,1745616646182,-3886.84878309,0.00015015,2]
[359001768,1745616646191,-1526.67743594,0.00015015,2]
[359001777,1745616672181,-200.24235929,0.00014582,2]
[359001778,1745616674983,-117.71863395,0.00014582,2]
[359001779,1745616675009,-120.51974932,0.00014923,2]
[359001780,1745616680479,-56.86943474,0.00014923,2]
[359001782,1745616772717,-164.92290803,0.00014873,2]
[359001783,1745616773743,-164.92290803,0.00014873,2]
[359001784,1745616778600,-232.40037639,0.00014873,2]
[359001785,1745616782471,-157.87000392,0.00014873,2]
[359001786,1745616785840,-195.54123446,0.00014872,2]
[359001787,1745616794498,-104.45876554,0.00014872,2]
[359001788,1745616794520,-208.45370098,0.00014873,2]
[359001789,1745616800407,-180.50963385,0.00014873,2]
[359001790,1745616804178,-410.37186527,0.00014873,2]
[359001791,1745616807340,-154.32037239,0.00014873,2]
[359001792,1745616810919,-375.67592111,0.00014873,2]
[359001793,1745616814422,-190.67382829,0.00014873,2]
[359001794,1745616818995,-300.0,0.00014873,2]
[359001795,1745616822099,-281.6502506,0.00014873,2]
[359001796,1745616828434,-223.01612894,0.00014873,2]
[359001797,1745616832364,-151.0,0.00014873,2]
[359001798,1745616835003,-167.31635305,0.00014873,2]
[359001799,1745616838279,-244.09880099,0.00014873,2]
[359001800,1745616844754,-255.90119901,0.00014872,2]
[359001801,1745616850268,-44.09880099,0.00014872,2]
[359001802,1745616850290,-234.96325526,0.00014873,2]
[359001803,1745616855254,-155.49395006,0.00014873,2]
[359001804,1745616857953,-316.55784123,0.00014873,2]
[359001805,1745616861859,-168.12811076,0.00014873,2]
[359001806,1745616865029,-312.17366959,0.00014873,2]
[359001807,1745616869407,-151.21581941,0.00014873,2]
[359001808,1745616874966,-447.21588047,0.00014873,2]
[359001809,1745616878005,-246.63695476,0.00014872,2]
[359001810,1745616878726,298.011616,0.00013996,2]
[359001811,1745616881521,-253.36304524,0.00014872,2]
[359001812,1745616884892,-314.80944284,0.00014872,2]
[359001813,1745616888924,-210.17611774,0.00014872,2]
[359001814,1745616892475,-4.80703053,0.00014872,2]
[359001815,1745616892501,-165.02896217,0.00014872,2]
[359001816,1745616897666,-334.97103783,0.00014872,2]
[359001817,1745616897698,-116.96803715,0.00014872,2]
[359001818,1745616899784,151.0,0.000138,2]
[359001819,1745616900104,151.0,0.000134,2]
[359001820,1745616904460,-151.0,0.000142,2]
[359001821,1745616904484,-149.0,0.000146,2]
[359001822,1745616910105,-2.0,0.000146,2]
[359001823,1745616910129,-300.0,0.00014871,2]
[359001824,1745616910154,-4.91904388,0.00014871,2]
[359001825,1745616917837,-260.13133045,0.00014871,2]
[359001826,1745616921874,-287.92959457,0.00014871,2]
[359001827,1745616925223,-319.16944221,0.00014871,2]
[359001828,1745616931926,-198.55245974,0.00014871,2]
[359001829,1745616936280,-129.29812915,0.00014871,2]
[359001830,1745616936312,-222.77005563,0.00014872,2]
[359001831,1745616941410,-173.25267973,0.00014872,2]
[359001832,1745616946297,-16.8018186,0.00014872,2]
[359001833,1745616946333,-266.93980068,0.00014872,2]
[359001834,1745616949660,-212.34538691,0.00014772,2]
[359001835,1745616953278,-145.66551425,0.00014772,2]
[359001836,1745616953300,-54.33448575,0.0001481,2]
[359001837,1745616958203,-303.67641537,0.0001481,2]
[359001838,1745616958227,-116.58586743,0.00014848,2]
[359001839,1745616963848,-241.42503369,0.00014848,2]
[359001840,1745616963873,-47.66240183,0.00014871,2]
[359001841,1745616970155,-210.91256448,0.00014871,2]
[359001842,1745616975251,-41.42503369,0.00014871,2]
[359001843,1745616975283,-118.62981306,0.00014872,2]
[359001844,1745616978842,-144.22297737,0.00014872,2]
[359001845,1745616978867,-117.54730484,0.00014872,2]
[359001846,1745616984335,-197.56816028,0.00014872,2]
[359001847,1745616989041,-163.68539615,0.00014772,2]
[359001848,1745616989066,-2.07026886,0.00014872,2]
[359001849,1745616989092,-11.35833418,0.00014872,2]
[359001850,1745616997948,-322.88600081,0.00014872,2]
[359001851,1745617004286,-165.75566501,0.00014872,2]
[359001852,1745617004318,-11.35833418,0.00014872,2]
[359001853,1745617008629,-374.79119719,0.00014872,2]
[359001854,1745617015889,-143.64305974,0.00014872,2]
[359001855,1745617015920,-285.81222323,0.00014872,2]
[359001860,1745617025532,-193.29626298,0.00014871,2]
[359001862,1745617029947,-106.70373702,0.00014871,2]
[359001863,1745617029979,-243.98036788,0.00014872,2]
[359001864,1745617030006,-149.3158951,0.00014872,2]
[359001865,1745617036560,-166.63018891,0.00014872,2]
[359001866,1745617040090,-207.86036884,0.00014871,2]
[359001867,1745617044699,-263.67939882,0.00014871,2]
[359001868,1745617049669,-28.46023234,0.00014871,2]
[359001869,1745617049692,-129.10444191,0.00014871,2]
[359001870,1745617056624,-132.91823238,0.00014871,2]
[359001871,1745617056651,-86.4764853,0.00014871,2]
[359001872,1745617063512,-211.17709571,0.00014871,2]
[359001873,1745617066820,-154.80012704,0.00014871,2]
[359001874,1745617071312,-47.54629195,0.00014871,2]
[359001875,1745617071340,-252.45370805,0.00014871,2]
[359001876,1745617076329,-161.42275627,0.00014871,2]
[359001877,1745617079207,-86.12353568,0.00014871,2]
[359001878,1745617079231,-78.21260746,0.00014871,2]
[359001879,1745617083891,-272.52190345,0.0001487,2]
[359001880,1745617088905,-27.47809655,0.0001487,2]
[359001881,1745617088931,-163.77161528,0.00014871,2]
[359001882,1745617092659,-163.34706509,0.00014871,2]
[359001883,1745617097285,-94.66871217,0.00014871,2]
[359001884,1745617097309,-96.37055167,0.00014871,2]
[359001885,1745617101795,-348.6446419,0.00014871,2]
[359001886,1745617104584,-20.06327223,0.00014871,2]
[359001887,1745617104615,-131.29208587,0.00014871,2]
[359001888,1745617109689,-291.76242607,0.00014871,2]
[359001889,1745617116459,-76.94548806,0.00014871,2]
[359001890,1745617116486,-423.05451194,0.00014872,2]
[359001891,1745617119793,-76.94548806,0.00014872,2]
[359001892,1745617119817,-303.80146641,0.00014872,2]
[359001893,1745617124596,-329.417,0.00014723,2]
[359001894,1745617124620,-144.17276902,0.00014872,2]
[359001895,1745617128784,-52.02576457,0.00014872,2]
[359001896,1745617128810,-163.9248556,0.00014872,2]
[359001897,1745617132825,-181.65434235,0.00014872,2]
[359001899,1745617135955,-154.42080205,0.00014872,2]
[359001900,1745617135979,-105.74258206,0.00014872,2]
[359001901,1745617142268,-216.11849138,0.00014872,2]
[359001902,1745617145975,-178.13892656,0.00014872,2]
[359001903,1745617145999,-36.86515453,0.00014872,2]
[359001905,1745617148987,3435.5832932,0.00013986,2]
[359001907,1745617152468,-123.21375576,0.00014872,2]
[359001908,1745617152498,-33.79224424,0.00014872,2]
[359001909,1745617158668,-257.97018183,0.00014872,2]
[359001910,1745617158691,-22.13737266,0.00014872,2]
[359001911,1745617165074,-177.13192046,0.00014715,2]
[359001912,1745617165098,-17.28274258,0.00014872,2]
[359001913,1745617168827,-157.006,0.00014872,2]
[359001914,1745617171662,-184.32083923,0.00014872,2]
[359001915,1745617171685,-10.57688389,0.00014872,2]
[359001916,1745617175087,-205.37373628,0.00014872,2]
[359001917,1745617175293,-22.22436276,0.00014872,2]
[359001919,1745617182963,-227.63907955,0.00014872,2]
[359001920,1745617186854,-50.13655769,0.00014872,2]
[359001921,1745617186878,-115.27916552,0.00014872,2]
[359001924,1745617192203,-153.5793824,0.00014872,2]
[359001925,1745617195471,-231.14145208,0.00014872,2]
[359001926,1745617195497,-68.85854792,0.00014872,2]
[359001927,1745617201054,-152.0,0.00014872,2]
[359001928,1745617204362,165.287178,0.00013983,2]
[359001929,1745617204832,-165.287178,0.00014006,2]
[359001930,1745617204856,-63.76588763,0.00014871,2]
[359001931,1745617208625,-165.287178,0.00014029,2]
[359001932,1745617208650,-165.287178,0.00014053,2]
[359001933,1745617208675,-169.425644,0.00014871,2]
[359001934,1745617214536,-66.80846837,0.00014871,2]
[359001935,1745617214561,-153.19153163,0.00014871,2]
[359001936,1745617218228,-433.19153163,0.00014871,2]
[359001937,1745617219338,-280.0,0.00014871,2]
[359001938,1745617225776,-333.61693674,0.00014871,2]
[359001939,1745617225800,-153.14027748,0.00014871,2]
[359001940,1745617229804,-66.85972252,0.00014871,2]
[359001941,1745617229829,-210.31372063,0.00014872,2]
[359001942,1745617233101,-68.82773145,0.00014872,2]
[359001943,1745617233129,-168.30941899,0.00014872,2]
[359001944,1745617239596,-500.0,0.00014871,2]
[359001945,1745617245253,-88.78099039,0.00014871,2]
[359001946,1745617245276,-309.59164251,0.00014871,2]
[359001947,1745617245300,-246.70908258,0.00014871,2]
[359001948,1745617254861,-253.29091742,0.00014871,2]
[359001949,1745617254884,-246.70908258,0.00014871,2]
[359001951,1745617260892,2500.0,0.00027,30]
[359001952,1745617264357,-300.0,0.0001487,2]
[359001953,1745617268339,-200.0,0.00014871,2]
[359001954,1745617278543,-53.29091742,0.00014871,2]
[359001955,1745617278568,-114.79734537,0.00014871,2]
[359001956,1745617282809,-308.79522953,0.00014871,2]
[359001957,1745617282832,-205.25059648,0.00014871,2]
[359001958,1745617286588,-179.00545056,0.00014771,2]
[359001959,1745617286611,-294.74940352,0.00014871,2]
[359001960,1745617286635,-26.24514592,0.00014871,2]
[359001961,1745617292112,-179.00545056,0.00014822,2]
[359001962,1745617296988,-320.99454944,0.00014871,2]
[359001963,1745617321805,-163.68539615,0.00014771,2]
[359001964,1745617324838,-152.76030464,0.00014871,2]
[359001965,1745617324862,-183.55429921,0.00014871,2]
[359001969,1745617353215,-348.0,0.0001487,2]
[359001970,1745617355862,-64.14669328,0.0001487,2]
[359001971,1745617355887,-87.85330672,0.0001487,2]
[359001972,1745617360127,-213.84047379,0.0001487,2]
[359001973,1745617361426,197.2134218,0.00013956,2]
[359001975,1745617364675,-198.30621949,0.0001487,2]
[359001976,1745617364699,-144.89667692,0.0001487,2]
[359001977,1745617370355,-71.81747283,0.0001487,2]
[359001978,1745617370380,-84.97963076,0.0001487,2]
[359001979,1745617375166,-111.53517167,0.0001487,2]
[359001980,1745617375189,-91.35622366,0.0001487,2]
[359001981,1745617380650,-157.7702144,0.0001487,2]
[359001982,1745617384905,-300.0,0.00014869,2]
[359001983,1745617384931,-42.2297856,0.0001487,2]
[359001985,1745617389936,-208.64377634,0.0001487,2]
[359001986,1745617389959,-291.35622366,0.0001487,2]
[359001988,1745617396050,-170.60694021,0.0001487,2]
[359001990,1745617399251,-38.03683613,0.0001487,2]
[359001991,1745617399276,-216.11849138,0.0001487,2]
[359001992,1745617399301,-245.84467249,0.0001487,2]
[359001993,1745617405116,-254.15532751,0.0001487,2]
[359001994,1745617405140,-433.16852699,0.0001487,2]
[359001995,1745617410399,-66.83147301,0.0001487,2]
[359001996,1745617410426,-433.16852699,0.0001487,2]
[359001997,1745617415280,-66.83147301,0.0001487,2]
[359001998,1745617415311,-305.38092673,0.0001487,2]
[359002001,1745617443580,-220.21239974,0.00014869,2]
[359002003,1745617484841,-152.0,0.0001477,2]
[359002004,1745617489154,-11.68539615,0.0001477,2]
[359002005,1745617489179,-79.78760026,0.00014869,2]
[359002006,1745617489210,-309.4693663,0.0001487,2]
[359002007,1745617489240,-39.52138305,0.0001487,2]
[359002008,1745617493331,-544.59401148,0.0001487,2]
[359002009,1745617502043,-288.50268529,0.00014869,2]
[359002010,1745617502065,-211.49731471,0.00014869,2]
[359002011,1745617508514,-300.0,0.00014869,2]
[359002014,1745617592990,-500.0,0.00014869,2]
[359002015,1745617598515,-291.2898667,0.00014868,2]
[359002016,1745617624060,-179.00545056,0.00014768,2]
[359002017,1745617625795,-3.15129411,0.00014868,2]